fUST/lending_fUST_20250101
["ID","MTS","AMOUNT","RATE_DAILY","PERIOD"]
[347303931,1735672239461,-500.0,0.00019178,2]
[347303933,1735672239471,-500.0,0.00019178,2]
[347303935,1735672239481,-500.0,0.00019178,2]
[347303937,1735672239491,-500.0,0.00019178,2]
[347303939,1735672239501,-500.0,0.00019178,2]
[347303941,1735672239510,-504.31654512,0.00019178,2]
[347303942,1735672239519,-629.27,0.00019178,2]
[347303943,1735672239529,-500.0,0.00019178,2]
[347303944,1735672239538,-500.0,0.00019178,2]
[347303945,1735672239547,-500.0,0.00019178,2]
[347303946,1735672239556,-651.59,0.00019178,2]
[347303947,1735672239566,-500.0,0.00019178,2]
[347303948,1735672239575,-500.0,0.00019178,2]
[347303949,1735672239585,-500.0,0.00019178,2]
[347303950,1735672239594,-575.51,0.00019178,2]
[347303951,1735672239604,-500.0,0.00019178,2]
[347303952,1735672239613,-500.0,0.00019178,2]
[347303953,1735672239622,-500.0,0.00019178,2]
[347303954,1735672239632,-500.0,0.00019178,2]
[347303955,1735672239641,-500.0,0.00019178,2]
[347303956,1735672239650,-650.99,0.00019178,2]
[347303957,1735672239660,-500.0,0.00019178,2]
[347303958,1735672239670,-502.07812151,0.00019178,2]
[347303959,1735672239679,-965.17,0.00019178,2]
[347303960,1735672239690,-500.0,0.00019178,2]
[347303961,1735672239700,-500.0,0.00019178,2]
[347303962,1735672239709,-500.0,0.00019178,2]
[347303963,1735672239719,-500.0,0.00019178,2]
[347303964,1735672239728,-500.0,0.00019178,2]
[347303965,1735672239737,-500.0,0.00019178,2]
[347303966,1735672239746,-500.0,0.00019178,2]
[347303967,1735672239756,-500.0,0.00019178,2]
[347303968,1735672239765,-500.0,0.00019178,2]
[347303969,1735672239774,-501.36137115,0.00019178,2]
[347303970,1735672239784,-500.0,0.00019178,2]
[347303971,1735672239793,-501.99339118,0.00019178,2]
[347303972,1735672239803,-500.0,0.00019178,2]
[347303973,1735672239813,-500.0,0.00019178,2]
[347303974,1735672239823,-500.0,0.00019178,2]
[347303975,1735672239832,-502.48432463,0.00019178,2]
[347303976,1735672239842,-500.0,0.00019178,2]
[347303977,1735672239851,-500.0,0.00019178,2]
[347303978,1735672239861,-500.0,0.00019178,2]
[347303979,1735672239871,-500.0,0.00019178,2]
[347303980,1735672239881,-500.0,0.00019178,2]
[347303981,1735672239890,-500.0,0.00019178,2]
[347303982,1735672239901,-1142.01,0.00019178,2]
[347303983,1735672239910,-500.0,0.00019178,2]
[347303984,1735672239920,-500.0,0.00019178,2]
[347303985,1735672239930,-788.11,0.00019178,2]
[347303986,1735672239941,-500.0,0.00019178,2]
[347303987,1735672239951,-500.0,0.00019178,2]
[347303988,1735672239960,-500.0,0.00019178,2]
[347303989,1735672239969,-502.63721505,0.00019178,2]
[347303990,1735672239978,-500.0,0.00019178,2]
[347303991,1735672239988,-500.0,0.00019178,2]
[347303992,1735672239997,-500.0,0.00019178,2]
[347303993,1735672240006,-500.0,0.00019178,2]
[347303994,1735672240016,-1119.91,0.00019178,2]
[347303996,1735672240025,-500.0,0.00019178,2]
[347303997,1735672240035,-500.0,0.00019178,2]
[347303998,1735672240044,-500.0,0.00019178,2]
[347303999,1735672240054,-758.55,0.00019178,2]
[347304000,1735672240063,-500.0,0.00019178,2]
[347304001,1735672240072,-500.0,0.00019178,2]
[347304002,1735672240081,-500.0,0.00019178,2]
[347304003,1735672240091,-500.0,0.00019178,2]
[347304004,1735672240101,-500.0,0.00019178,2]
[347304005,1735672240110,-500.0,0.00019178,2]
[347304006,1735672240119,-500.0,0.00019178,2]
[347304007,1735672240128,-308.24090254,0.00019178,2]
[347304008,1735672240138,-500.0,0.00019178,2]
[347304009,1735672240148,-500.0,0.00019178,2]
[347304010,1735672240157,-500.0,0.00019178,2]
[347304011,1735672240166,-500.55645597,0.00019178,2]
[347304012,1735672240175,-231.78699152,0.00019178,2]
[347304013,1735672240185,-504.40340513,0.00019178,2]
[347304014,1735672240195,-504.82084746,0.00019178,2]
[347304015,1735672240204,-500.0,0.00019178,2]
[347304016,1735672240214,-500.0,0.00019178,2]
[347304017,1735672240224,-2103.98,0.00019178,2]
[347304018,1735672240233,-1470.04,0.00019178,2]
[347304019,1735672240243,-494.54908773,0.00019178,2]
[347304020,1735672240252,-500.0,0.00019178,2]
[347304021,1735672240261,-500.0,0.00019178,2]
[347304022,1735672240271,-500.0,0.00019178,2]
[347304023,1735672240281,-500.0,0.00019178,2]
[347304024,1735672240290,-500.0,0.00019178,2]
[347304025,1735672240300,-739.29,0.00019178,2]
[347304026,1735672240309,-500.0,0.00019178,2]
[347304027,1735672240319,-500.0,0.00019178,2]
[347304028,1735672240328,-585.49,0.00019178,2]
[347304029,1735672240338,-500.0,0.00019178,2]
[347304030,1735672240348,-500.0,0.00019178,2]
[347304031,1735672240358,-500.0,0.00019178,2]
[347304032,1735672240367,-500.0,0.00019178,2]
[347304033,1735672240383,-500.0,0.00019178,2]
[347304034,1735672240392,-500.0,0.00019178,2]
[347304035,1735672240402,-500.0,0.00019178,2]
[347304036,1735672240412,-500.0,0.00019178,2]
[347304037,1735672240423,-500.0,0.00019178,2]
[347304038,1735672240432,-507.38,0.00019178,2]
[347304039,1735672240443,-161.68609302,0.00019178,2]
[347304040,1735672240453,-500.0,0.00019178,2]
[347304041,1735672240463,-605.46,0.00019178,2]
[347304042,1735672240473,-500.0,0.00019178,2]
[347304043,1735672240482,-886.32,0.00019178,2]
[347304044,1735672240491,-500.0,0.00019178,2]
[347304045,1735672240501,-500.0,0.00019178,2]
[347304046,1735672240511,-500.0,0.00019178,2]
[347304047,1735672240521,-500.0,0.00019178,2]
[347304048,1735672240530,-752.33,0.00019178,2]
[347304049,1735672240540,-500.0,0.00019178,2]
[347304050,1735672240549,-500.0,0.00019178,2]
[347304051,1735672240559,-500.0,0.00019178,2]
[347304052,1735672240569,-500.0,0.00019178,2]
[347304053,1735672240578,-731.56,0.00019178,2]
[347304054,1735672240587,-850.38,0.00019178,2]
[347304055,1735672240597,-500.0,0.00019178,2]
[347304056,1735672240606,-500.0,0.00019178,2]
[347304057,1735672240615,-500.0,0.00019178,2]
[347304058,1735672240625,-500.0,0.00019178,2]
[347304059,1735672240635,-500.0,0.00019178,2]
[347304060,1735672240644,-500.0,0.00019178,2]
[347304061,1735672240654,-500.0,0.00019178,2]
[347304062,1735672240663,-860.84,0.00019178,2]
[347304063,1735672240673,-2986.32,0.00019178,2]
[347304064,1735672240682,-502.10794084,0.00019178,2]
[347304065,1735672240693,-500.0,0.00019178,2]
[347304066,1735672240703,-1063.93,0.00019178,2]
[347304067,1735672240713,-500.0,0.00019178,2]
[347304068,1735672240723,-500.0,0.00019178,2]
[347304069,1735672240732,-500.0,0.00019178,2]
[347304070,1735672240741,-500.0,0.00019178,2]
[347304071,1735672240750,-502.1947248,0.00019178,2]
[347304072,1735672240760,-500.0,0.00019178,2]
[347304073,1735672240768,-500.0,0.00019178,2]
[347304074,1735672240778,-949.03,0.00019178,2]
[347304075,1735672240787,-500.0,0.00019178,2]
[347304076,1735672240796,-500.0,0.00019178,2]
[347304077,1735672240806,-500.0,0.00019178,2]
[347304078,1735672240815,-500.0,0.00019178,2]
[347304079,1735672240824,-500.0,0.00019178,2]
[347304080,1735672240833,-500.0,0.00019178,2]
[347304081,1735672240842,-500.0,0.00019178,2]
[347304082,1735672240852,-500.0,0.00019178,2]
[347304083,1735672240861,-500.0,0.00019178,2]
[347304084,1735672240871,-500.0,0.00019178,2]
[347304085,1735672240880,-787.97,0.00019178,2]
[347304086,1735672240890,-901.69,0.00019178,2]
[347304087,1735672240899,-500.0,0.00019178,2]
[347304088,1735672240908,-238.28896166,0.00019178,2]
[347304089,1735672240918,-500.0,0.00019178,2]
[347304090,1735672240927,-1391.05,0.00019178,2]
[347304091,1735672240936,-543.91,0.00019178,2]
[347304092,1735672240946,-500.0,0.00019178,2]
[347304093,1735672240955,-500.0,0.00019178,2]
[347304094,1735672240964,-500.0,0.00019178,2]
[347304095,1735672240973,-500.0,0.00019178,2]
[347304096,1735672240985,-500.0,0.00019178,2]
[347304097,1735672240994,-500.0,0.00019178,2]
[347304098,1735672241003,-746.31,0.00019178,2]
[347304099,1735672241013,-503.33816558,0.00019178,2]
[347304100,1735672241022,-500.0,0.00019178,2]
[347304101,1735672241032,-720.57,0.00019178,2]
[347304103,1735672241041,-500.0,0.00019178,2]
[347304105,1735672241050,-500.0,0.00019178,2]
[347304107,1735672241060,-500.0,0.00019178,2]
[347304108,1735672241069,-4644.83,0.00019178,2]
[347304109,1735672241079,-500.0,0.00019178,2]
[347304111,1735672241089,-500.0,0.00019178,2]
[347304113,1735672241098,-1690.7,0.00019178,2]
[347304114,1735672241107,-500.0,0.00019178,2]
[347304115,1735672241116,-320.45134473,0.00019178,2]
[347304116,1735672241126,-705.22,0.00019178,2]
[347304117,1735672241135,-500.0,0.00019178,2]
[347304118,1735672241145,-500.0,0.00019178,2]
[347304119,1735672241154,-500.0,0.00019178,2]
[347304121,1735672241164,-8763.17,0.00019178,2]
[347304122,1735672241173,-500.0,0.00019178,2]
[347304123,1735672241183,-423.98831582,0.00019178,2]
[347304124,1735672241192,-1793.86,0.00019178,2]
[347304125,1735672241202,-500.0,0.00019178,2]
[347304126,1735672241212,-500.84,0.00019178,2]
[347304127,1735672241222,-876.93,0.00019178,2]
[347304128,1735672241231,-500.0,0.00019178,2]
[347304129,1735672241240,-1447.74,0.00019178,2]
[347304130,1735672241250,-500.0,0.00019178,2]
[347304131,1735672241260,-500.0,0.00019178,2]
[347304132,1735672241270,-37655.17,0.00019178,2]
[347304133,1735672241279,-835.37,0.00019178,2]
[347304134,1735672241289,-500.0,0.00019178,2]
[347304135,1735672241298,-500.0,0.00019178,2]
[347304136,1735672241308,-500.0,0.00019178,2]
[347304137,1735672241317,-743.06,0.00019178,2]
[347304138,1735672241326,-500.0,0.00019178,2]
[347304139,1735672241336,-500.0,0.00019178,2]
[347304140,1735672241345,-500.0,0.00019178,2]
[347304141,1735672241354,-500.0,0.00019178,2]
[347304142,1735672241363,-500.0,0.00019178,2]
[347304143,1735672241373,-500.0,0.00019178,2]
[347304144,1735672241388,-994.06,0.00019178,2]
[347304145,1735672241398,-500.0,0.00019178,2]
[347304146,1735672241407,-1293.84,0.00019178,2]
[347304147,1735672241416,-500.0,0.00019178,2]
[347304148,1735672241426,-500.0,0.00019178,2]
[347304149,1735672241436,-500.0,0.00019178,2]
[347304150,1735672241451,-1168.78,0.00019178,2]
[347304151,1735672241461,-500.0,0.00019178,2]
[347304152,1735672241472,-500.0,0.00019178,2]
[347304153,1735672241481,-500.0,0.00019178,2]
[347304154,1735672241490,-826.4,0.00019178,2]
[347304155,1735672241500,-500.0,0.00019178,2]
[347304156,1735672241509,-365.69433599,0.00019178,2]
[347304157,1735672241529,-134.30566401,0.00019178,2]
[347304158,1735672241539,-500.0,0.00019178,2]
[347304159,1735672241549,-500.0,0.00019178,2]
[347304160,1735672241559,-247.13254516,0.00019178,2]
[347304161,1735672241568,-500.0,0.00019178,2]
[347304162,1735672241577,-500.0,0.00019178,2]
[347304163,1735672241587,-1000.0,0.00019178,2]
[347304164,1735672241597,-500.0,0.00019178,2]
[347304165,1735672241606,-913.46,0.00019178,2]
[347304166,1735672241616,-500.0,0.00019178,2]
[347304167,1735672241625,-1228.09,0.00019178,2]
[347304168,1735672241635,-500.0,0.00019178,2]
[347304169,1735672241643,-500.0,0.00019178,2]
[347304170,1735672241652,-500.0,0.00019178,2]
[347304171,1735672241661,-500.0,0.00019178,2]
[347304172,1735672241671,-884.66,0.00019178,2]
[347304173,1735672241680,-500.0,0.00019178,2]
[347304174,1735672241690,-257.79901667,0.00019178,2]
[347304175,1735672241700,-500.0,0.00019178,2]
[347304176,1735672241709,-524.0,0.00019178,2]
[347304177,1735672241720,-500.0,0.00019178,2]
[347304178,1735672241729,-500.0,0.00019178,2]
[347304179,1735672241739,-161.68609302,0.00019178,2]
[347304180,1735672241748,-500.0,0.00019178,2]
[347304181,1735672241758,-1008.09,0.00019178,2]
[347304182,1735672241767,-500.0,0.00019178,2]
[347304183,1735672241878,-500.0,0.00019178,2]
[347304184,1735672241888,-500.0,0.00019178,2]
[347304185,1735672241898,-500.0,0.00019178,2]
[347304186,1735672241907,-500.0,0.00019178,2]
[347304187,1735672241917,-500.0,0.00019178,2]
[347304188,1735672241926,-500.0,0.00019178,2]
[347304189,1735672241936,-3119.29,0.00019178,2]
[347304190,1735672241947,-500.0,0.00019178,2]
[347304191,1735672241956,-175.85673067,0.00019178,2]
[347304192,1735672241965,-1178.11,0.00019178,2]
[347304193,1735672241974,-500.0,0.00019178,2]
[347304194,1735672241983,-8493.3,0.00019178,2]
[347304195,1735672241992,-500.0,0.00019178,2]
[347304196,1735672242001,-500.0,0.00019178,2]
[347304197,1735672242010,-1671.35,0.00019178,2]
[347304198,1735672242019,-626.10039727,0.00019178,2]
[347304199,1735672242028,-1510.14,0.00019178,2]
[347304200,1735672242037,-500.0,0.00019178,2]
[347304201,1735672242047,-500.0,0.00019178,2]
[347304202,1735672242058,-482.91177722,0.00019178,2]
[347304203,1735672242067,-500.0,0.00019178,2]
[347304204,1735672242076,-3953.81,0.00019178,2]
[347304205,1735672242086,-2019.8,0.00019178,2]
[347304206,1735672242095,-500.0,0.00019178,2]
[347304207,1735672242104,-500.0,0.00019178,2]
[347304208,1735672242114,-876.52,0.00019178,2]
[347304209,1735672242123,-500.0,0.00019178,2]
[347304210,1735672242132,-511.84026667,0.00019178,2]
[347304211,1735672242141,-500.0,0.00019178,2]
[347304212,1735672242151,-500.0,0.00019178,2]
[347304213,1735672242160,-508.64695864,0.00019178,2]
[347304214,1735672242169,-500.0,0.00019178,2]
[347304215,1735672242178,-500.72807361,0.00019178,2]
[347304216,1735672242187,-500.21,0.00019178,2]
[347304217,1735672242197,-502.02,0.00019178,2]
[347304218,1735672242207,-500.0,0.00019178,2]
[347304219,1735672242216,-174.399891,0.00019178,2]
[347304220,1735672242225,-163.688323,0.00019178,2]
[347304221,1735672242235,-408.04932626,0.00019256,2]
[347304222,1735672242244,-152.0,0.00019264,2]
[347304223,1735672242254,-152.0,0.00019264,2]
[347304224,1735672242263,-152.0,0.00019264,2]
[347304225,1735672242273,-152.0,0.00019264,2]
[347304226,1735672242282,-152.0,0.00019264,2]
[347304227,1735672242291,-152.0,0.00019264,2]
[347304228,1735672242301,-152.0,0.00019264,2]
[347304229,1735672242310,-152.0,0.00019264,2]
[347304230,1735672242319,-152.0,0.00019264,2]
[347304231,1735672242329,-152.0,0.00019264,2]
[347304232,1735672242338,-152.0,0.00019264,2]
[347304233,1735672242347,-152.0,0.00019264,2]
[347304234,1735672242357,-152.0,0.00019264,2]
[347304235,1735672242366,-152.0,0.00019264,2]
[347304236,1735672242376,-152.0,0.00019264,2]
[347304237,1735672242389,-152.0,0.00019264,2]
[347304238,1735672242398,-206.75,0.00019264,2]
[347304239,1735672242407,-1259.68134977,0.00019284,2]
[347304240,1735672242417,-60000.0,0.000194,2]
[347304241,1735672242427,-408.04932626,0.00019434,2]
[347304242,1735672242437,-500.0,0.00019452,3]
[347304243,1735672242447,-500.0,0.00019452,3]
[347304244,1735672242456,-749.63,0.00019452,3]
[347304245,1735672242465,-500.0,0.00019452,3]
[347304246,1735672242474,-527.9,0.00019452,3]
[347304247,1735672242484,-566.14,0.00019452,3]
[347304248,1735672242493,-151.0,0.00019452,2]
[347304249,1735672242503,-6322.25,0.00019452,3]
[347304250,1735672242512,-151.0,0.00019452,2]
[347304251,1735672242522,-500.0,0.00019452,3]
[347304252,1735672242531,-151.0,0.00019452,2]
[347304253,1735672242541,-500.0,0.00019452,3]
[347304254,1735672242550,-500.0,0.00019452,3]
[347304255,1735672242560,-600.83,0.00019452,3]
[347304256,1735672242569,-500.0,0.00019452,3]
[347304257,1735672242578,-500.0,0.00019452,3]
[347304258,1735672242588,-2940.04,0.00019452,3]
[347304259,1735672242598,-500.0,0.00019452,3]
[347304260,1735672242607,-500.0,0.00019452,3]
[347304261,1735672242617,-500.0,0.00019452,3]
[347304262,1735672242627,-1130.72,0.00019452,3]
[347304263,1735672242636,-601.04,0.00019452,3]
[347304264,1735672242645,-500.0,0.00019452,3]
[347304265,1735672242655,-500.0,0.00019452,3]
[347304266,1735672242664,-500.0,0.00019452,3]
[347304267,1735672242673,-504.64648404,0.00019452,3]
[347304268,1735672242683,-151.0,0.00019452,2]
[347304269,1735672242694,-273.898612,0.00019452,2]
[347304270,1735672242703,-273.898612,0.00019452,2]
[347304271,1735672242712,-505.31059276,0.00019452,3]
[347304272,1735672242722,-622.61,0.00019452,3]
[347304273,1735672242731,-505.26530612,0.00019452,3]
[347304274,1735672242740,-500.0,0.00019452,3]
[347304275,1735672242750,-500.0,0.00019452,3]
[347304276,1735672242759,-516.03,0.00019452,3]
[347304277,1735672242769,-505.95060473,0.00019452,3]
[347304278,1735672242778,-500.0,0.00019452,3]
[347304279,1735672242787,-500.0,0.00019452,3]
[347304280,1735672242796,-500.0,0.00019452,3]
[347304281,1735672242805,-500.0,0.00019452,3]
[347304282,1735672242814,-501.60871758,0.00019452,3]
[347304283,1735672242823,-500.0,0.00019452,3]
[347304284,1735672242833,-500.0,0.00019452,3]
[347304285,1735672242842,-500.0,0.00019452,3]
[347304286,1735672242853,-500.86099914,0.00019452,3]
[347304287,1735672242863,-500.0,0.00019452,3]
[347304288,1735672242872,-500.0,0.00019452,3]
[347304289,1735672242882,-169.592575,0.00019452,2]
[347304290,1735672242891,-169.592575,0.00019452,2]
[347304291,1735672242901,-500.0,0.00019452,3]
[347304292,1735672242910,-500.0,0.00019452,3]
[347304293,1735672242919,-169.592575,0.00019452,2]
[347304294,1735672242929,-169.592575,0.00019452,2]
[347304295,1735672242938,-500.0,0.00019452,3]
[347304296,1735672242948,-500.0,0.00019452,3]
[347304297,1735672242957,-500.0,0.00019452,3]
[347304298,1735672242966,-500.0,0.00019452,3]
[347304299,1735672242975,-500.0,0.00019452,3]
[347304300,1735672242985,-599.81231256,0.00019452,3]
[347304301,1735672242994,-768.99,0.00019452,3]
[347304302,1735672243003,-500.0,0.00019452,3]
[347304303,1735672243013,-887.19,0.00019452,3]
[347304304,1735672243022,-500.0,0.00019452,3]
[347304305,1735672243031,-500.0,0.00019452,3]
[347304306,1735672243041,-500.0,0.00019452,3]
[347304307,1735672243050,-500.0,0.00019452,2]
[347304308,1735672243059,-1513.63,0.00019452,3]
[347304309,1735672243068,-500.0,0.00019452,3]
[347304310,1735672243077,-673.24,0.00019452,3]
[347304311,1735672243087,-500.0,0.00019452,3]
[347304312,1735672243096,-500.0,0.00019452,3]
[347304313,1735672243105,-458.63960152,0.00019452,3]
[347304314,1735672243114,-754.24,0.00019452,3]
[347304315,1735672243123,-500.0,0.00019452,3]
[347304316,1735672243132,-500.0,0.00019452,3]
[347304317,1735672243142,-500.0,0.00019452,3]
[347304318,1735672243151,-151.0,0.00019452,2]
[347304319,1735672243160,-500.0,0.00019452,3]
[347304320,1735672243169,-500.0,0.00019452,3]
[347304321,1735672243179,-500.0,0.00019452,3]
[347304322,1735672243188,-502.63693995,0.00019452,3]
[347304323,1735672243198,-500.0,0.00019452,3]
[347304324,1735672243207,-500.0,0.00019452,3]
[347304325,1735672243216,-516.91,0.00019452,3]
[347304326,1735672243226,-509.87657925,0.00019452,3]
[347304327,1735672243236,-640.84134407,0.00019452,3]
[347304328,1735672243245,-5194.95,0.00019452,3]
[347304329,1735672243254,-500.0,0.00019452,3]
[347304330,1735672243264,-500.0,0.00019452,3]
[347304331,1735672243273,-568.69899948,0.00019452,3]
[347304332,1735672243282,-151.0,0.00019452,2]
[347304333,1735672243291,-500.0,0.00019452,3]
[347304334,1735672243300,-504.24253105,0.00019452,3]
[347304335,1735672243310,-500.0,0.00019452,3]
[347304336,1735672243319,-500.0,0.00019452,3]
[347304337,1735672243328,-503.10648188,0.00019452,3]
[347304338,1735672243338,-500.0,0.00019452,3]
[347304339,1735672243347,-629.27,0.00019452,3]
[347304340,1735672243357,-500.0,0.00019452,3]
[347304341,1735672243366,-500.0,0.00019452,3]
[347304342,1735672243376,-651.59,0.00019452,3]
[347304344,1735672243389,-500.0,0.00019452,3]
[347304345,1735672243398,-500.0,0.00019452,3]
[347304346,1735672243407,-575.51,0.00019452,3]
[347304347,1735672243416,-504.92032518,0.00019452,3]
[347304348,1735672243427,-500.0,0.00019452,3]
[347304349,1735672243436,-500.0,0.00019452,3]
[347304350,1735672243445,-650.99,0.00019452,3]
[347304351,1735672243454,-965.17,0.00019452,3]
[347304352,1735672243465,-500.0,0.00019452,3]
[347304353,1735672243474,-500.0,0.00019452,3]
[347304354,1735672243483,-500.0,0.00019452,3]
[347304355,1735672243492,-500.0,0.00019452,3]
[347304356,1735672243501,-500.0,0.00019452,3]
[347304357,1735672243510,-500.0,0.00019452,3]
[347304358,1735672243519,-500.0,0.00019452,3]
[347304359,1735672243529,-500.0,0.00019452,3]
[347304360,1735672243539,-500.0,0.00019452,3]
[347304361,1735672243548,-500.0,0.00019452,3]
[347304362,1735672243557,-1142.01,0.00019452,3]
[347304363,1735672243566,-500.0,0.00019452,3]
[347304364,1735672243576,-504.84278697,0.00019452,3]
[347304365,1735672243585,-788.11,0.00019452,3]
[347304366,1735672243595,-500.0,0.00019452,3]
[347304367,1735672243604,-601.6277443,0.00019452,3]
[347304368,1735672243613,-687.313315,0.00019452,2]
[347304369,1735672243622,-687.313315,0.00019452,2]
[347304370,1735672243632,-500.0,0.00019452,3]
[347304371,1735672243641,-500.0,0.00019452,3]
[347304372,1735672243650,-687.313315,0.00019452,2]
[347304373,1735672243659,-687.313315,0.00019452,2]
[347304374,1735672243668,-500.0,0.00019452,3]
[347304375,1735672243678,-500.0,0.00019452,3]
[347304376,1735672243687,-1119.91,0.00019452,3]
[347304377,1735672243697,-500.0,0.00019452,3]
[347304378,1735672243706,-487.2939958,0.00019452,3]
[347304379,1735672243716,-500.0,0.00019452,3]
[347304380,1735672243725,-758.55,0.00019452,3]
[347304381,1735672243734,-500.0,0.00019452,3]
[347304382,1735672243743,-495.488641,0.00019452,2]
[347304383,1735672243752,-495.488641,0.00019452,2]
[347304384,1735672243762,-193.183239,0.00019452,2]
[347304385,1735672243771,-193.183239,0.00019452,2]
[347304386,1735672243780,-500.0,0.00019452,3]
[347304387,1735672243789,-500.0,0.00019452,3]
[347304388,1735672243799,-495.488641,0.00019452,2]
[347304389,1735672243808,-495.488641,0.00019452,2]
[347304390,1735672243817,-193.183239,0.00019452,2]
[347304391,1735672243827,-193.183239,0.00019452,2]
[347304392,1735672243836,-151.299747,0.00019452,2]
[347304393,1735672243846,-500.0,0.00019452,3]
[347304394,1735672243855,-151.0,0.00019452,2]
[347304395,1735672243864,-151.0,0.00019452,2]
[347304396,1735672243873,-500.0,0.00019452,3]
[347304397,1735672243883,-500.0,0.00019452,3]
[347304398,1735672243891,-491.19792382,0.00019452,3]
[347304399,1735672243901,-151.0,0.00019452,2]
[347304400,1735672243910,-151.0,0.00019452,2]
[347304401,1735672243919,-500.0,0.00019452,3]
[347304402,1735672243928,-151.0,0.00019452,2]
[347304403,1735672243937,-2103.98,0.00019452,3]
[347304404,1735672243947,-151.0,0.00019452,2]
[347304405,1735672243956,-1470.04,0.00019452,3]
[347304406,1735672243965,-500.0,0.00019452,3]
[347304407,1735672243974,-500.0,0.00019452,3]
[347304408,1735672243984,-500.0,0.00019452,3]
[347304409,1735672243993,-500.0,0.00019452,3]
[347304410,1735672244002,-739.29,0.00019452,3]
[347304411,1735672244012,-500.0,0.00019452,3]
[347304412,1735672244021,-585.49,0.00019452,3]
[347304413,1735672244134,-500.0,0.00019452,3]
[347304414,1735672244145,-500.0,0.00019452,3]
[347304415,1735672244155,-500.0,0.00019452,3]
[347304416,1735672244165,-176.485778,0.00019452,2]
[347304417,1735672244176,-176.485778,0.00019452,2]
[347304418,1735672244186,-500.0,0.00019452,3]
[347304419,1735672244198,-176.485778,0.00019452,2]
[347304420,1735672244207,-176.485778,0.00019452,2]
[347304421,1735672244216,-500.0,0.00019452,3]
[347304422,1735672244225,-500.0,0.00019452,3]
[347304423,1735672244235,-507.38,0.00019452,3]
[347304424,1735672244244,-500.0,0.00019452,3]
[347304425,1735672244253,-605.46,0.00019452,3]
[347304426,1735672244262,-500.0,0.00019452,3]
[347304427,1735672244272,-886.32,0.00019452,3]
[347304428,1735672244281,-500.0,0.00019452,3]
[347304429,1735672244291,-500.0,0.00019452,3]
[347304430,1735672244300,-500.0,0.00019452,3]
[347304431,1735672244309,-500.0,0.00019452,3]
[347304432,1735672244319,-752.33,0.00019452,3]
[347304433,1735672244329,-500.0,0.00019452,3]
[347304434,1735672244339,-500.0,0.00019452,3]
[347304435,1735672244348,-500.0,0.00019452,3]
[347304436,1735672244358,-500.0,0.00019452,3]
[347304437,1735672244367,-731.56,0.00019452,3]
[347304438,1735672244377,-850.38,0.00019452,3]
[347304439,1735672244391,-500.0,0.00019452,3]
[347304440,1735672244400,-500.0,0.00019452,3]
[347304441,1735672244409,-164.730858,0.00019452,2]
[347304442,1735672244419,-164.730858,0.00019452,2]
[347304443,1735672244429,-500.0,0.00019452,3]